bitfinex/quotes_BTCUSD_20250225
["timestamp","ask_amount","ask_price","bid_price","bid_amount"]
[1740523046913,0.48924613,89159.0,89158.0,0.001697]
[1740523047334,0.53586943,89159.0,89158.0,0.001697]
[1740523053550,0.53686943,89159.0,89158.0,0.001697]
[1740523054094,0.53786943,89159.0,89158.0,0.001697]
[1740523055368,0.468259,89148.0,89131.0,0.02]
[1740523055949,0.48926713,89148.0,89131.0,0.02]
[1740523057146,0.49526713,89148.0,89131.0,0.02]
[1740523057440,0.50126713,89148.0,89131.0,0.02]
[1740523061846,0.46827,89142.0,89131.0,0.02]
[1740523062309,0.46827,89142.0,89121.0,0.0791]
[1740523062310,0.168308,89122.0,89121.0,0.07227681]
[1740523062488,0.168316,89118.0,89117.0,0.047696]
[1740523063554,0.18932413,89118.0,89117.0,0.04782142]
[1740523064373,0.18932413,89118.0,89117.0,0.00182142]
[1740523067232,0.48932413,89118.0,89117.0,0.00182142]
[1740523068732,0.468316,89118.0,89117.0,0.00182142]
[1740523071493,0.58217296,89118.0,89117.0,0.00182142]
[1740523072780,0.60371381,89118.0,89117.0,0.00182142]
[1740523073404,0.60371381,89118.0,89085.0,0.3152516]
[1740523073405,0.3,89098.0,89093.0,0.0814]
[1740523073612,0.01454085,89117.0,89094.0,0.0018217]
[1740523073613,0.468359,89095.0,89094.0,0.0018217]
[1740523073957,0.50798622,89095.0,89094.0,0.0018217]
[1740523074158,0.53112733,89095.0,89094.0,0.0018217]
[1740523074402,0.468399,89074.0,89073.0,0.0814]
[1740523074634,0.468399,89074.0,89073.0,0.08181846]
[1740523074794,0.168399,89074.0,89073.0,0.08181846]
[1740523077140,0.168399,89074.0,89073.0,0.08351626]
[1740523080899,0.224528,89076.0,89073.0,0.08351626]
[1740523081221,0.168399,89074.0,89073.0,0.08351626]
[1740523086198,0.468399,89074.0,89073.0,1.58351626]
[1740523086800,0.468399,89074.0,89073.0,1.5887226]
[1740523088588,0.3008494,89074.0,89073.0,1.5887226]
[1740523088788,0.4692484,89074.0,89073.0,1.5887226]
[1740523089662,0.4702484,89074.0,89073.0,1.5887226]
[1740523099924,0.1702484,89074.0,89073.0,1.5887226]
[1740523100547,0.224526,89077.0,89073.0,1.5887226]
[1740523100707,0.168399,89074.0,89073.0,1.5887226]
[1740523101320,0.168399,89074.0,89073.0,1.5073226]
[1740523102263,0.169399,89074.0,89073.0,1.5073226]
[1740523102874,0.174399,89074.0,89073.0,1.5073226]
[1740523103256,0.173399,89074.0,89073.0,1.5073226]
[1740523103742,0.168399,89074.0,89073.0,1.5073226]
[1740523104396,0.468399,89074.0,89073.0,1.5073226]
[1740523104559,0.474399,89074.0,89073.0,1.5073226]
[1740523104762,0.468399,89074.0,89073.0,1.5846226]
[1740523105172,0.481399,89074.0,89073.0,1.5846226]
[1740523105547,0.468399,89074.0,89073.0,1.5846226]
[1740523105769,0.479399,89074.0,89073.0,1.5846226]
[1740523106048,0.473399,89074.0,89073.0,1.5846226]
[1740523106386,0.468399,89074.0,89073.0,1.5846226]
[1740523106810,0.168399,89074.0,89073.0,1.6316226]
[1740523107010,0.174399,89074.0,89073.0,1.6316226]
[1740523108442,0.168399,89074.0,89073.0,1.6316226]
[1740523108593,0.169399,89074.0,89073.0,1.6316226]
[1740523109213,0.169399,89074.0,89073.0,1.6326226]
[1740523110039,0.3,89077.0,89073.0,1.6316226]
[1740523110192,0.3,89077.0,89073.0,1.6336226]
[1740523110566,0.168399,89074.0,89073.0,1.6336226]
[1740523110739,0.0008494,89074.0,89073.0,1.6336226]
[1740523111735,0.0008494,89074.0,89073.0,1.6316226]
[1740523112048,0.0008494,89074.0,89073.0,1.6326226]
[1740523112252,0.0008494,89074.0,89073.0,1.6316226]
[1740523112615,0.0018494,89074.0,89073.0,1.6316226]
[1740523112815,0.0018494,89074.0,89073.0,1.5458026]
[1740523113234,0.0018494,89074.0,89073.0,1.5468026]
[1740523114547,0.0018494,89074.0,89073.0,0.13050634]
[1740523116671,0.0018494,89074.0,89073.0,0.44575794]
[1740523121547,0.0018494,89074.0,89073.0,0.45591794]
[1740523121743,0.1702484,89074.0,89073.0,0.45591794]
[1740523122651,0.1702484,89074.0,89073.0,0.44575794]
[1740523122883,0.1702484,89074.0,89073.0,0.45761674]
[1740523127482,0.4702484,89074.0,89073.0,0.37015674]
[1740523127658,0.4702484,89074.0,89073.0,0.32315674]
[1740523128426,0.49328205,89074.0,89073.0,0.32215674]
[1740523128574,0.49328205,89074.0,89073.0,7.8e-07]
[1740523128776,0.49628205,89074.0,89073.0,0.00911173]
[1740523128978,0.468408,89069.0,89068.0,0.0016966]
[1740523129157,0.48294885,89069.0,89068.0,0.0016966]
[1740523129905,0.48294885,89069.0,89057.0,0.0016968]
[1740523129906,0.22999421,89069.0,89057.0,4e-07]
[1740523130103,0.01454085,89058.0,89036.0,0.0451]
[1740523130308,0.22462,89040.0,89036.0,0.0451]
[1740523130603,0.22462,89040.0,89030.0,0.0831]
[1740523130783,0.16848,89031.0,89030.0,0.0831]
[1740523131507,0.16848,89031.0,89030.0,0.08322551]
[1740523132106,0.16948,89031.0,89030.0,0.08322551]
[1740523132442,0.16848,89031.0,89030.0,0.08322551]
[1740523132611,0.16848,89031.0,89030.0,0.08303249]
[1740523135055,0.16848,89031.0,89030.0,0.08388189]
[1740523135374,0.20239723,89031.0,89030.0,0.08388189]
[1740523136249,0.20239723,89031.0,89030.0,0.09371675]
[1740523136662,0.50239723,89031.0,89030.0,0.01080977]
[1740523137093,0.50239723,89031.0,89030.0,0.00097491]
[1740523138321,0.50439723,89031.0,89030.0,0.00097491]
[1740523138864,0.50739723,89031.0,89030.0,0.00097491]
[1740523142865,0.168721,88904.0,88902.0,0.85616242]
[1740523143078,0.168721,88904.0,88869.0,0.08973489]
[1740523143079,0.568785,88870.0,88869.0,0.08973489]
[1740523143297,0.369055,88870.0,88869.0,0.08973489]
[1740523143549,0.369055,88870.0,88869.0,0.05593376]
[1740523143761,0.40213531,88870.0,88869.0,0.05635016]
[1740523143960,0.1,88843.0,88823.0,0.0015759]
[1740523144170,0.10027,88842.0,88819.0,0.168881]
[1740523144411,0.1,88837.0,88817.0,0.35942739]
[1740523144582,0.3,88837.0,88823.0,0.00157592]
[1740523144865,0.40027,88837.0,88823.0,0.00157592]
[1740523145078,0.40027,88837.0,88817.0,0.35942739]
[1740523145297,0.50068563,88837.0,88817.0,0.35942739]
[1740523145521,0.40068563,88837.0,88822.0,0.04827346]
[1740523145737,0.3,88835.0,88822.0,0.21714946]
[1740523145975,0.1,88832.0,88822.0,0.04827346]
[1740523146196,0.4,88830.0,88823.0,0.01352]
[1740523146368,0.1,88827.0,88822.0,0.04827346]
[1740523146589,0.10027,88826.0,88823.0,0.01352]
[1740523146841,0.20027,88826.0,88823.0,0.02399988]
[1740523147052,0.10027,88825.0,88824.0,0.01352]
[1740523147276,0.10027,88825.0,88822.0,0.04827346]
[1740523147740,0.11857064,88824.0,88823.0,0.01080235]
[1740523147949,0.15707004,88825.0,88823.0,0.02428235]
[1740523148180,0.3,88828.0,88823.0,0.01348]
[1740523148408,0.3,88835.0,88824.0,0.01080152]
[1740523148617,0.3,88831.0,88823.0,0.01348]
[1740523149321,0.3,88831.0,88830.0,1.5]
[1740523149546,0.3,88840.0,88830.0,1.5]
[1740523149803,0.3,88838.0,88830.0,1.51344]
[1740523149943,0.168859,88832.0,88830.0,0.02423653]
[1740523150177,0.003,88831.0,88830.0,0.01344]
[1740523150376,0.168859,88832.0,88830.0,1.5]
[1740523150583,0.168859,88832.0,88831.0,0.0134]
[1740523150891,0.168859,88832.0,88831.0,0.0241957]
[1740523151056,0.00541563,88837.0,88831.0,0.0241957]
[1740523151264,0.003,88832.0,88831.0,0.0241957]
[1740523153132,0.00041563,88837.0,88831.0,0.0241957]
[1740523153334,0.003,88832.0,88831.0,0.0241957]
[1740523153683,0.16926463,88837.0,88831.0,0.0241957]
[1740523153858,0.00041563,88837.0,88831.0,1.5241957]
[1740523154061,0.168852,88835.0,88831.0,1.5134]
[1740523154258,0.00041563,88837.0,88832.0,0.01079487]
[1740523154487,0.168854,88834.0,88832.0,0.01079487]
[1740523154800,0.00041563,88837.0,88831.0,0.0134]
[1740523155011,0.168853,88835.0,88833.0,0.01079404]
[1740523155222,0.168853,88835.0,88831.0,0.0134]
[1740523155422,0.00041563,88837.0,88831.0,0.0134]
[1740523155622,0.168855,88834.0,88831.0,0.0134]
[1740523155820,0.00241563,88837.0,88831.0,0.0134]
[1740523156125,0.00041563,88837.0,88831.0,0.0134]
[1740523156376,0.001,88835.0,88831.0,0.0134]
[1740523156598,0.00041563,88837.0,88832.0,0.01079487]
[1740523156721,0.001,88834.0,88832.0,0.01079487]
[1740523156921,0.168856,88833.0,88831.0,0.0134]
[1740523158205,0.168858,88832.0,88824.0,0.17864]
[1740523158457,0.168858,88832.0,88825.0,0.01316]
[1740523158636,0.168855,88834.0,88825.0,0.01316]
[1740523158993,0.168856,88833.0,88832.0,0.0008513]
[1740523159331,0.225133,88836.0,88832.0,0.0008513]
[1740523159851,0.168853,88835.0,88832.0,0.0008513]
[1740523160147,0.00041563,88837.0,88832.0,0.0008513]
[1740523161009,0.001,88836.0,88832.0,0.0008513]
[1740523162029,0.00041563,88837.0,88832.0,0.0008513]
[1740523162294,0.00341563,88837.0,88832.0,0.0008513]
[1740523162568,0.00041563,88837.0,88832.0,0.0008513]
[1740523162937,0.003,88836.0,88832.0,0.0008513]
[1740523163348,0.003,88836.0,88833.0,0.011122]
[1740523163769,0.00041563,88837.0,88833.0,0.011122]
[1740523164971,0.003,88836.0,88833.0,0.011122]
[1740523165590,0.003,88836.0,88833.0,0.189842]
[1740523165954,0.00041563,88837.0,88833.0,0.189842]
[1740523166120,0.00041563,88837.0,88836.0,0.16885]
[1740523166328,0.00041563,88837.0,88836.0,0.25748017]
[1740523166483,0.00041563,88837.0,88836.0,0.2559046]
[1740523166684,0.00041563,88837.0,88836.0,0.26734558]
[1740523167010,0.00041563,88837.0,88836.0,0.27036818]
[1740523167835,0.00041563,88837.0,88836.0,0.70921571]
[1740523168069,0.1,88910.0,88837.0,0.1203]
[1740523168238,1.124313,88944.0,88837.0,0.1203]
[1740523168239,0.02416,88909.0,88852.0,0.225093]
[1740523168445,0.1,88915.0,88853.0,0.00157528]
[1740523168647,0.1,88918.0,88867.0,0.168789]
[1740523168846,0.1,88915.0,88868.0,0.237891]
[1740523169198,0.168762,88883.0,88868.0,0.02724531]
[1740523169345,0.010766,88914.0,88868.0,0.02724531]
[1740523169551,0.3,88879.0,88868.0,0.0158626]
[1740523169962,0.04429728,88914.0,88868.0,0.0158626]
[1740523169963,0.007,88909.0,88868.0,0.01598772]
[1740523170165,0.007,88909.0,88869.0,0.01134871]
[1740523170366,0.168755,88886.0,88869.0,0.168787]
[1740523170604,0.3,88885.0,88870.0,0.01134788]
[1740523170970,0.3,88885.0,88871.0,0.225045]
[1740523171165,0.3,88885.0,88871.0,0.01134705]
[1740523171354,0.3,88885.0,88873.0,0.225038]
[1740523171556,0.04053128,88914.0,88874.0,0.168777]
[1740523171759,0.04053128,88914.0,88874.0,0.01134456]
[1740523172158,0.004,88885.0,88874.0,0.01134456]
[1740523172511,0.004,88885.0,88880.0,0.168766]
[1740523172700,0.004,88885.0,88884.0,0.168759]
[1740523173039,0.168727,88901.0,88888.0,0.168751]
[1740523173248,0.3,88910.0,88884.0,0.01133626]
[1740523173442,0.524948,88910.0,88889.0,0.01133211]
[1740523173643,0.3,88899.0,88887.0,0.168752]
[1740523173892,0.3,88899.0,88890.0,0.01130294]
[1740523174064,0.3,88899.0,88888.0,0.1800546]
[1740523174245,0.3,88899.0,88891.0,0.01130211]
[1740523174481,0.007,88901.0,88889.0,0.01129678]
[1740523174703,0.168716,88907.0,88892.0,0.01129429]
[1740523174866,0.0083978,88898.0,88892.0,0.224989]
[1740523175204,0.0083978,88898.0,88893.0,0.18003347]
[1740523175500,0.0083978,88898.0,88894.0,0.168739]
[1740523175703,0.0083978,88898.0,88893.0,0.01129347]
[1740523175862,0.0083978,88898.0,88864.0,0.2]
[1740523175863,0.168736,88896.0,88895.0,0.0112824]
[1740523176069,0.3,88895.0,88873.0,0.0030226]
[1740523176253,0.468778,88874.0,88873.0,0.0030226]
[1740523176604,0.468778,88874.0,88873.0,0.0157026]
[1740523177173,0.468778,88874.0,88873.0,0.01582772]
[1740523177591,0.00864895,88896.0,88873.0,0.01582772]
[1740523177793,0.3,88886.0,88873.0,0.01582772]
[1740523178015,0.00839237,88874.0,88873.0,0.01582772]
[1740523178221,0.00839237,88874.0,88873.0,0.24086672]
[1740523178786,0.00839237,88874.0,88873.0,0.35461425]
[1740523179733,0.001,88874.0,88873.0,0.35461425]
[1740523179955,0.168727,88901.0,88889.0,0.168749]
[1740523180183,0.224964,88904.0,88889.0,0.168749]
[1740523180184,0.01454085,88935.0,88889.0,0.047]
[1740523180355,0.224894,88931.0,88892.0,0.22499]
[1740523180532,0.168716,88907.0,88894.0,0.16874]
[1740523180738,0.468717,88906.0,88891.0,0.224994]
[1740523180939,0.168717,88906.0,88893.0,0.16874]
[1740523181140,0.17710094,88906.0,88893.0,0.16874]
[1740523182245,0.00838394,88905.0,88893.0,0.16874]
[1740523182626,0.00838394,88905.0,88894.0,0.168739]
[1740523182833,0.30838394,88905.0,88892.0,0.224992]
[1740523183242,0.30838394,88905.0,88890.0,0.0762]
[1740523183449,0.47710294,88905.0,88893.0,0.168741]
[1740523183728,0.00838394,88904.0,88893.0,0.168741]
[1740523184325,0.00838394,88904.0,88891.0,0.224994]
[1740523184524,0.00838394,88904.0,88894.0,0.16874]
[1740523184780,0.00838394,88904.0,88890.0,0.0762]
[1740523184958,0.3,88903.0,88892.0,0.168742]
[1740523185168,0.30838394,88903.0,88892.0,0.168744]
[1740523185342,0.47710694,88903.0,88892.0,0.168744]
[1740523185549,0.3,88900.0,88890.0,0.0762]
[1740523185786,0.30838394,88903.0,88891.0,0.01248]
[1740523185787,0.3,88901.0,88891.0,0.01248]
[1740523185992,0.168744,88892.0,88891.0,0.01248]
[1740523186914,0.224971,88900.0,88890.0,0.01244]
[1740523187263,0.468757,88885.0,88884.0,0.17868]
[1740523188215,0.468759,88884.0,88883.0,0.01244]
[1740523188835,0.168768,88879.0,88878.0,0.0789]
[1740523189046,0.168768,88879.0,88878.0,0.0124]
[1740523191096,0.3,88882.0,88878.0,0.0124]
[1740523191388,0.17715194,88879.0,88878.0,0.0124]
[1740523191598,0.468778,88874.0,88873.0,0.00314772]
[1740523192376,0.47716194,88874.0,88873.0,0.00314772]
[1740523194115,0.48216194,88874.0,88873.0,0.00314772]
[1740523194313,0.01338394,88874.0,88873.0,0.00314772]
[1740523194514,0.18216194,88874.0,88873.0,0.00314772]
[1740523196548,0.01338394,88874.0,88832.0,0.0008513]
[1740523196758,0.168825,88849.0,88848.0,9.999e-05]
[1740523196957,0.468825,88849.0,88848.0,9.999e-05]
[1740523197555,0.47720894,88849.0,88848.0,9.999e-05]
[1740523198100,0.48220894,88849.0,88848.0,9.999e-05]
[1740523199314,0.31338394,88849.0,88848.0,9.999e-05]
[1740523199720,0.48220894,88849.0,88848.0,9.999e-05]
[1740523200047,0.31338394,88849.0,88848.0,9.999e-05]
[1740523200219,0.01338394,88849.0,88848.0,0.29412699]
[1740523200418,0.01338394,88849.0,88848.0,0.30240899]
[1740523200739,0.01338394,88849.0,88848.0,0.41615652]
[1740523201140,0.01338394,88849.0,88848.0,0.77020434]
[1740523201347,0.00838394,88849.0,88848.0,0.77020434]
[1740523201578,0.02920467,88884.0,88848.0,1.15251819]
[1740523201881,0.168755,88886.0,88849.0,0.87624085]
[1740523202081,0.168751,88889.0,88877.0,0.168772]
[1740523202248,0.3,88887.0,88878.0,0.01224]
[1740523202442,0.284023,88888.0,88878.0,0.01224]
[1740523202443,0.11527,88888.0,88878.0,0.01224]
[1740523202676,0.11527,88888.0,88879.0,0.00821916]
[1740523202877,0.12367144,88888.0,88879.0,0.00821916]
[1740523203081,0.12367144,88888.0,88878.0,0.01224]
[1740523203417,0.3,88887.0,88878.0,0.01233999]
[1740523203554,0.12367144,88888.0,88878.0,0.01233999]
[1740523203764,0.3,88887.0,88879.0,0.00821916]
[1740523204259,0.00840144,88886.0,88879.0,0.00821916]
[1740523205286,0.00840144,88886.0,88878.0,0.01233999]
[1740523205494,0.00840144,88886.0,88880.0,0.0462]
[1740523205734,0.00840144,88886.0,88885.0,0.168757]
[1740523205935,0.00840144,88886.0,88885.0,0.493857]
[1740523206162,0.00840144,88886.0,88885.0,0.50204352]
[1740523206904,0.11527,88888.0,88887.0,0.168753]
[1740523207249,0.11527,88888.0,88887.0,0.50203786]
[1740523208210,0.11606192,88888.0,88887.0,0.50203786]
[1740523209517,0.11775932,88888.0,88887.0,0.50203786]
[1740523213867,0.11775932,88888.0,88887.0,0.61578539]
[1740523215107,0.11675932,88888.0,88887.0,0.61578539]
[1740523215341,0.11775932,88888.0,88887.0,0.61578539]
[1740523215912,0.11875932,88888.0,88887.0,0.61578539]
[1740523221324,0.11875932,88888.0,88887.0,0.61663369]
[1740523221751,0.11875932,88888.0,88887.0,0.63117454]
[1740523222758,0.11675932,88888.0,88887.0,0.63117454]
[1740523222925,0.11675932,88888.0,88887.0,0.64297454]
[1740523223145,0.0016966,88903.0,88902.0,0.168725]
[1740523223326,0.0016966,88903.0,88902.0,1.1457468]
[1740523223670,0.0016966,88903.0,88902.0,1.15217478]
[1740523225190,0.0016966,88903.0,88902.0,1.15917478]
[1740523225939,0.0016966,88903.0,88902.0,1.16779016]
[1740523226396,0.0016966,88903.0,88902.0,1.25933101]
[1740523226789,0.0016966,88903.0,88902.0,1.30653101]
[1740523226990,0.0016966,88903.0,88902.0,1.39658561]
[1740523227173,0.0016966,88903.0,88902.0,1.40830561]
[1740523227589,0.0016966,88903.0,88902.0,1.50830561]
[1740523228597,0.0016966,88903.0,88902.0,1.49658561]
[1740523228800,0.0016966,88903.0,88902.0,1.50830561]
[1740523228994,0.0016966,88903.0,88902.0,1.53104764]
[1740523229198,0.0016966,88903.0,88902.0,1.52404764]
[1740523229633,0.0016966,88903.0,88902.0,1.53104764]
[1740523230089,0.0016966,88903.0,88902.0,1.70960764]
[1740523232844,0.0016966,88903.0,88902.0,2.00960764]
[1740523233047,0.0016966,88903.0,88902.0,2.10960764]
[1740523234348,0.0016966,88903.0,88902.0,2.09788764]
[1740523234551,0.0016966,88903.0,88902.0,2.10948764]
[1740523236060,0.0016966,88903.0,88902.0,2.00948764]
[1740523236268,0.0016966,88903.0,88902.0,2.10948764]
[1740523237773,6e-07,88903.0,88902.0,2.10948764]
[1740523238418,6e-07,88903.0,88902.0,2.22078764]
[1740523238790,0.0010006,88903.0,88902.0,2.22778764]
[1740523239015,6e-07,88903.0,88902.0,2.20504561]
[1740523239238,4e-07,88906.0,88905.0,0.568719]
[1740523239437,4e-07,88906.0,88905.0,0.68246653]
[1740523239611,4e-07,88906.0,88905.0,1.55105628]
[1740523240422,4e-07,88906.0,88905.0,1.55115627]
[1740523240830,4e-07,88906.0,88905.0,1.56569712]
[1740523241058,4e-07,88906.0,88905.0,1.60074427]
[1740523241431,4e-07,88906.0,88905.0,1.66569712]
[1740523241638,0.168633,88951.0,88941.0,0.168649]
[1740523241840,0.0812034,88963.0,88942.0,0.01144]
[1740523242043,0.3812034,88963.0,88946.0,0.168641]
[1740523242246,0.00841794,88950.0,88946.0,0.168641]
[1740523242534,0.03374793,88950.0,88947.0,0.00686817]
[1740523242742,0.00841794,88950.0,88947.0,0.00686817]
[1740523242947,0.00883416,88950.0,88945.0,0.168643]
[1740523243191,0.00883416,88950.0,88948.0,0.00686772]
[1740523243366,0.00883416,88950.0,88945.0,0.168643]
[1740523243567,0.00883416,88950.0,88949.0,0.00686727]
[1740523243763,0.00883416,88950.0,88947.0,0.168638]
[1740523244121,0.00841794,88949.0,88946.0,0.16864]
[1740523244310,0.00841794,88949.0,88946.0,0.168641]
[1740523244517,0.00841794,88949.0,88943.0,0.01144]
[1740523244883,0.00841794,88949.0,88943.0,0.236301]
[1740523245101,0.00841794,88949.0,88944.0,0.168644]
[1740523245307,0.00841794,88949.0,88943.0,0.01144]
[1740523245711,0.00841794,88948.0,88946.0,0.169641]
[1740523246030,0.00841794,88948.0,88946.0,0.168641]
[1740523246229,0.00841794,88948.0,88947.0,0.168639]
[1740523251072,0.00841794,88948.0,88947.0,0.169639]
[1740523251727,0.00841794,88948.0,88947.0,0.17637028]
[1740523252042,0.00841794,88948.0,88947.0,0.17794412]
[1740523253556,0.00841794,88949.0,88948.0,0.168637]
[1740523253947,0.00841794,88949.0,88948.0,0.17536141]
[1740523254146,0.00841794,88949.0,88948.0,0.17693515]
[1740523255616,0.00841794,88949.0,88948.0,0.17793515]
[1740523255993,0.00841794,88949.0,88948.0,0.17636141]
[1740523256722,0.00841794,88949.0,88948.0,0.18217482]
[1740523257964,0.00841794,88949.0,88948.0,0.18374856]
[1740523258348,0.00041622,88950.0,88949.0,0.168635]
[1740523258729,0.00041622,88950.0,88949.0,0.18272291]
[1740523259632,0.00041622,88950.0,88949.0,0.18372291]
[1740523262000,0.00041622,88950.0,88949.0,0.26572291]
[1740523262296,0.00041622,88950.0,88949.0,0.26414918]
[1740523262660,0.16905022,88950.0,88949.0,0.01351418]
[1740523262864,0.30041622,88950.0,88943.0,0.0008476]
[1740523263106,0.468645,88944.0,88943.0,0.0008476]
[1740523263519,0.168645,88944.0,88943.0,0.0008476]
[1740523264016,0.19390339,88944.0,88943.0,0.0008476]
[1740523266070,0.20233498,88944.0,88943.0,0.0028476]
[1740523273260,0.50233498,88944.0,88943.0,0.0028476]
[1740523274433,0.51553498,88944.0,88943.0,6e-07]
[1740523274788,0.168706,88912.0,88911.0,0.18952]
[1740523275187,0.168706,88912.0,88911.0,0.02029129]
[1740523275590,0.168706,88912.0,88911.0,0.011]
[1740523275789,0.168742,88893.0,88892.0,0.3251]
[1740523275992,0.168742,88893.0,88892.0,0.32519999]
[1740523276216,0.168742,88893.0,88892.0,0.33450828]
[1740523276447,0.168737,88896.0,88892.0,0.33450828]
[1740523276623,0.16874,88894.0,88892.0,0.33450828]
[1740523276823,0.168721,88904.0,88892.0,0.33450828]
[1740523277024,0.02654,88912.0,88893.0,0.00157473]
[1740523277223,0.3,88907.0,88897.0,0.168734]
[1740523277430,0.3,88907.0,88894.0,0.00940054]
[1740523277788,0.3,88907.0,88905.0,0.168717]
[1740523277909,0.0210179,88906.0,88905.0,0.168717]
[1740523278133,0.0210179,88906.0,88905.0,0.25340769]
[1740523278987,0.0210179,88906.0,88905.0,0.25640769]
[1740523279290,0.0210179,88906.0,88905.0,0.28215106]
[1740523279490,0.3,88930.0,88919.0,0.168691]
[1740523279692,0.39985354,88934.0,88922.0,0.168686]
[1740523279896,0.56851754,88934.0,88921.0,0.224918]
[1740523280094,0.12501223,88934.0,88923.0,0.00937459]
[1740523280319,0.12501223,88934.0,88922.0,0.00935098]
[1740523280499,0.12501223,88934.0,88930.0,0.168671]
[1740523280704,0.10026976,88934.0,88932.0,0.168667]
[1740523280908,0.10026976,88934.0,88931.0,0.00934293]
[1740523281084,0.10026976,88934.0,88933.0,0.00936857]
[1740523281263,0.10026976,88934.0,88932.0,0.00936947]
[1740523281469,0.10026976,88934.0,88933.0,0.0093565]
[1740523281690,0.10026976,88934.0,88928.0,0.224898]
[1740523281893,0.10026976,88934.0,88932.0,0.168667]
[1740523282093,0.10026976,88934.0,88933.0,0.0093565]
[1740523282296,0.10026976,88934.0,88933.0,0.001]
[1740523282494,0.10026976,88934.0,88933.0,0.0103565]
[1740523282695,0.16897747,88934.0,88933.0,0.0103565]
[1740523283096,0.16897747,88934.0,88933.0,0.0093565]
[1740523283273,0.16897747,88934.0,88932.0,0.168667]
[1740523283479,0.16897747,88934.0,88933.0,0.01021078]
[1740523283675,0.16897747,88934.0,88933.0,0.168666]
[1740523283901,0.06912393,88934.0,88933.0,0.17887114]
[1740523284196,0.00041622,88934.0,88933.0,0.32589991]
[1740523285220,0.00041622,88934.0,88933.0,0.32689991]
[1740523285447,0.00041622,88934.0,88933.0,0.32589991]
[1740523285666,0.00041622,88934.0,88933.0,0.32989991]
[1740523286195,0.3,88945.0,88933.0,0.32989991]
[1740523286407,0.3,88945.0,88940.0,0.168652]
[1740523286640,0.168639,88948.0,88933.0,0.1613339]
[1740523286641,0.16864,88947.0,88941.0,0.16865]
[1740523286818,0.16864,88947.0,88941.0,0.01019079]
[1740523287018,0.16864,88947.0,88941.0,0.02953624]
[1740523287222,0.16864,88947.0,88941.0,0.14702877]
[1740523287426,0.02495145,88947.0,88942.0,0.01018989]
[1740523287744,0.16864,88947.0,88942.0,0.15721866]
[1740523287942,0.00840823,88946.0,88942.0,0.15721866]
[1740523288457,0.224849,88949.0,88942.0,0.15721866]
[1740523288655,0.168636,88949.0,88942.0,0.15721866]
[1740523288853,0.168636,88949.0,88943.0,0.14702877]
[1740523289023,0.001,88947.0,88943.0,0.14702877]
[1740523289223,0.02503759,88947.0,88944.0,0.0101857]
[1740523289475,0.468636,88949.0,88944.0,0.0101857]
[1740523289673,0.470636,88949.0,88944.0,0.0101857]
[1740523289879,0.302,88949.0,88944.0,0.0101857]
[1740523290221,0.002,88949.0,88944.0,0.0101857]
[1740523290487,0.002,88949.0,88945.0,0.14702877]
[1740523290806,0.002,88949.0,88946.0,0.01015671]
[1740523291320,0.001,88947.0,88946.0,0.15718548]
[1740523291503,0.02554083,88949.0,88946.0,0.15718548]
[1740523291792,0.16863,88953.0,88946.0,0.15718548]
[1740523292004,0.0016952,88963.0,88947.0,0.14702877]
[1740523292202,0.0016952,88963.0,88948.0,0.0108]
[1740523292404,0.0016952,88963.0,88951.0,0.168631]
[1740523292567,0.0016952,88963.0,88948.0,0.02094417]
[1740523292763,0.168617,88959.0,88952.0,0.01014059]
[1740523292990,0.16862,88958.0,88950.0,0.168633]
[1740523293231,0.168621,88957.0,88953.0,0.0101397]
[1740523293413,0.02715724,88963.0,88949.0,0.14702877]
[1740523293591,0.168623,88956.0,88954.0,0.00788472]
[1740523293793,0.168623,88956.0,88949.0,0.14702877]
[1740523293995,0.168623,88956.0,88955.0,0.00788405]
[1740523294198,0.168623,88956.0,88950.0,0.14702877]
[1740523294402,0.168623,88956.0,88955.0,0.00788405]
[1740523294605,0.168623,88956.0,88950.0,0.14702877]
[1740523294806,0.168623,88956.0,88955.0,0.01051207]
[1740523295001,0.168623,88956.0,88955.0,0.14702877]
[1740523295235,0.168623,88956.0,88955.0,0.16054084]
[1740523296000,0.168623,88956.0,88955.0,0.15002877]
[1740523296242,0.468623,88956.0,88955.0,0.15002877]
[1740523296420,0.468623,88956.0,88955.0,0.09198979]
[1740523302422,0.168623,88956.0,88955.0,0.09198979]
[1740523305401,0.224823,88959.0,88955.0,0.09198979]
[1740523305772,0.224827,88958.0,88956.0,0.01048962]
[1740523305977,0.224827,88958.0,88955.0,0.09198979]
[1740523306186,0.168622,88956.0,88955.0,0.09198979]
[1740523306345,0.168622,88956.0,88955.0,0.08898979]
[1740523306754,0.168622,88956.0,88955.0,0.08998979]
[1740523307943,0.168622,88956.0,88955.0,0.08898979]
[1740523308146,0.0016956,88959.0,88955.0,0.09098979]
[1740523308361,0.0016956,88959.0,88956.0,0.01065629]
[1740523309419,0.0016956,88959.0,88957.0,0.08898979]
[1740523309915,0.0016956,88959.0,88958.0,0.0106545]
[1740523310676,0.1703126,88959.0,88958.0,0.0106545]
[1740523311079,0.168618,88958.0,88957.0,0.08898979]
[1740523312153,0.168618,88958.0,88957.0,0.05029838]
[1740523312373,0.168618,88958.0,88957.0,0.05229838]
[1740523314161,0.0016956,88959.0,88957.0,0.05229838]
[1740523314388,0.0016956,88959.0,88958.0,0.0106545]
[1740523314737,0.0016956,88959.0,88958.0,0.02999995]
[1740523315729,0.0016956,88959.0,88958.0,0.03099995]
[1740523315942,0.0016956,88959.0,88958.0,0.0116545]
[1740523318613,0.0016956,88959.0,88958.0,0.03049588]
[1740523320799,0.0016956,88959.0,88958.0,0.02949588]
[1740523321691,0.0016956,88959.0,88958.0,0.03049588]
[1740523321925,0.0016956,88959.0,88958.0,0.02949588]
[1740523322283,0.0016956,88959.0,88958.0,0.03049588]
[1740523323613,0.3,88990.0,88958.0,0.03049588]
[1740523323933,0.3,88990.0,88958.0,0.01984138]
[1740523324110,0.3,88990.0,88958.0,0.001]
[1740523324638,0.3,88990.0,88955.0,0.0008477]
[1740523324933,0.005,88990.0,88958.0,0.001]
[1740523325772,0.01454085,88989.0,88955.0,0.0008477]
[1740523326044,0.008509,88973.0,88955.0,0.0018477]
[1740523326392,0.008509,88973.0,88956.0,0.01066127]
[1740523327536,0.008509,88973.0,88958.0,0.001]
[1740523327736,0.008509,88973.0,88956.0,0.01066127]
[1740523328190,0.012509,88973.0,88956.0,0.01066127]